bitfinex-derivatives/quotes_ETHF0:USTF0_20250726
["timestamp","ask_amount","ask_price","bid_price","bid_amount"]
[1753554198654,2.67114301,3725.9,3725.8,2.3999]
[1753554198859,3.08484301,3725.9,3725.8,2.3999]
[1753554200050,0.5824,3725.4,3725.3,3.8745]
[1753554200359,2.88086,3725.4,3725.3,4.7649]
[1753554200760,2.88086,3725.4,3725.3,3.6176]
[1753554201961,2.88086,3725.4,3725.3,3.2078]
[1753554202464,2.3442,3725.4,3725.3,3.6176]
[1753554202754,2.3442,3725.4,3725.3,5.30158]
[1753554202959,2.3442,3725.4,3725.3,5.77398]
[1753554203158,2.3442,3725.4,3725.3,2.56618]
[1753554203360,1.9305,3725.4,3725.3,2.88228]
[1753554203958,0.3128,3725.4,3725.3,2.88228]
[1753554204161,0.3128,3725.4,3725.3,6.09008]
[1753554204361,0.7557,3725.6,3725.5,2.88225]
[1753554204663,0.20405301,3725.9,3725.3,3.2078]
[1753554204664,2.13455301,3725.9,3725.8,2.88221]
[1753554204858,2.13455301,3725.9,3725.8,6.09001]
[1753554206462,0.20405301,3725.9,3725.8,6.09001]
[1753554209665,0.20405301,3725.9,3725.8,5.5534]
[1753554211559,2.13495301,3725.9,3725.8,5.5534]
[1753554211759,3.07054301,3725.9,3725.8,5.081]
[1753554211960,3.07054301,3725.9,3725.8,3.6176]
[1753554212566,3.07054301,3725.9,3725.8,0.4098]
[1753554213162,3.07054301,3725.9,3725.8,0.6672]
[1753554214670,3.07054301,3725.9,3725.8,0.4098]
[1753554214867,2.46759,3725.2,3725.1,5.1116]
[1753554215364,2.46759,3725.2,3725.1,5.5307]
[1753554215665,0.98156,3725.4,3725.3,0.9119]
[1753554215869,0.53666,3725.5,3725.3,2.3229]
[1753554216070,0.98151,3725.8,3725.7,2.3229]
[1753554216365,0.74064301,3725.9,3725.8,1.411]
[1753554216566,0.74064301,3725.9,3725.8,2.3229]
[1753554216766,0.20405301,3725.9,3725.8,2.3229]
[1753554216967,3.07054301,3725.9,3725.8,0.6765]
[1753554217160,2.67154301,3725.9,3725.8,2.3229]
[1753554218971,3.07054301,3725.9,3725.8,2.3229]
[1753554220068,0.20405301,3725.9,3725.8,2.3229]
[1753554220274,0.20405301,3725.9,3725.8,2.85951]
[1753554220573,2.67154301,3725.9,3725.8,2.3229]
[1753554220771,2.13495301,3725.9,3725.8,2.85951]
[1753554222770,2.67154301,3725.9,3725.8,2.3229]
[1753554223273,0.20405301,3725.9,3725.8,2.85951]
[1753554226974,0.96295301,3725.9,3725.8,2.85951]
[1753554227279,1.85705301,3725.9,3725.8,2.85951]
[1753554227976,1.30635301,3725.9,3725.8,2.85951]
[1753554228679,1.58425301,3725.9,3725.8,2.85951]
[1753554228979,2.13495301,3725.9,3725.8,2.85951]
[1753554231786,0.20405301,3725.9,3725.8,2.85951]
[1753554233273,0.018,3726.3,3726.2,1.44845]
[1753554233580,0.4629,3726.3,3726.2,6.06725]
[1753554233776,1.1203,3726.3,3726.2,6.06725]
[1753554233977,1.671,3726.3,3726.2,6.06725]
[1753554234372,1.1203,3726.3,3726.2,6.06725]
[1753554234782,0.332,3726.3,3726.2,6.06725]
[1753554238190,0.7627,3726.3,3726.2,6.06725]
[1753554239787,0.332,3726.3,3726.2,6.06725]
[1753554240792,0.018,3726.3,3726.2,6.06725]
[1753554244091,0.018,3726.3,3726.2,6.40199995]
[1753554245799,1.8711,3726.3,3726.2,6.40199995]
[1753554246199,1.6223,3726.3,3726.2,6.40199995]
[1753554246399,1.0946,3726.3,3726.2,6.40199995]
[1753554246701,1.4224,3726.9,3726.8,0.53646]
[1753554246894,1.8531,3726.9,3726.8,6.34150995]
[1753554248297,0.7409,3726.9,3726.8,6.34150995]
[1753554248894,1.6043,3726.9,3726.8,6.34150995]
[1753554249500,1.8531,3726.9,3726.8,6.34148314]
[1753554253104,1.6043,3726.9,3726.8,6.34148314]
[1753554253305,1.0766,3726.9,3726.8,6.34148314]
[1753554253506,0.3102,3726.9,3726.8,6.34148314]
[1753554253903,0.7409,3726.9,3726.8,6.34148314]
[1753554254103,1.6043,3726.9,3726.8,6.34148314]
[1753554254507,1.8531,3726.9,3726.8,6.34148314]
[1753554259514,1.8531,3727.2,3727.1,2.79892]
[1753554259714,1.8531,3727.2,3727.1,3.13364314]
[1753554260116,1.6043,3727.2,3727.1,3.13364314]
[1753554260915,1.8531,3727.2,3727.1,3.13364314]
[1753554262916,1.8531,3727.2,3727.1,0.96452314]
[1753554263116,2.2383,3727.2,3727.1,1.24474314]
[1753554263512,2.2383,3727.2,3727.1,2.02884314]
[1753554263712,1.8531,3727.2,3727.1,3.13364314]
[1753554264111,1.09532,3727.8,3727.7,0.53633]
[1753554264316,2.77462,3727.8,3727.7,1.84812314]
[1753554264614,2.77462,3727.8,3727.7,0.33472314]
[1753554265017,2.77462,3727.8,3727.7,0.70832314]
[1753554267318,2.77462,3727.8,3727.7,1.24465314]
[1753554268220,2.77462,3727.8,3727.7,0.70832314]
[1753554268515,2.77462,3727.8,3727.7,1.24465314]
[1753554268722,2.77462,3727.8,3727.7,0.70832314]
[1753554269420,2.77462,3727.8,3727.7,0.33489948]
[1753554269817,2.80176,3727.5,3727.4,3.74417]
[1753554270017,2.80176,3727.5,3727.4,3.2078]
[1753554270218,2.80176,3727.5,3727.4,3.93128451]
[1753554270516,2.80176,3727.5,3727.4,3.54271009]
[1753554271116,2.80176,3727.5,3727.4,3.54272143]
[1753554274620,2.80176,3727.5,3727.4,3.93132143]
[1753554276923,2.80176,3727.5,3727.4,3.93132143]
[1753554277123,2.80176,3727.5,3727.4,3.93201364]
[1753554277524,2.80176,3727.5,3727.4,4.19841364]
[1753554279125,2.80176,3727.5,3727.4,4.53051364]
[1753554279422,2.80176,3727.5,3727.4,5.80071364]
[1753554279622,2.80176,3727.5,3727.4,5.05421364]
[1753554280020,2.80176,3727.5,3727.4,4.19841364]
[1753554280219,2.80176,3727.5,3727.4,3.93201364]
[1753554280420,2.80176,3727.5,3727.4,3.54341364]
[1753554281822,2.80176,3727.5,3727.4,0.33561364]
[1753554282227,2.80176,3727.5,3727.4,0.72421364]
[1753554283626,2.80176,3727.5,3727.4,1.84641364]
[1753554283827,2.42916,3727.5,3727.4,2.59291364]
[1753554284327,1.8928,3727.5,3727.4,3.12929364]
[1753554284525,0.2886,3727.5,3727.4,3.12929364]
[1753554284730,0.7635,3727.5,3727.4,3.12929364]
[1753554285026,0.2886,3727.5,3727.4,3.12929364]
[1753554286028,0.2886,3727.5,3727.4,6.33709364]
[1753554286623,0.7635,3727.5,3727.4,6.33709364]
[1753554287530,1.6263,3727.5,3727.4,6.33709364]
[1753554289827,1.8928,3727.5,3727.4,6.33709364]
[1753554290326,2.42916,3727.5,3727.4,5.80071364]
[1753554290526,2.42916,3727.5,3727.4,2.59291364]
[1753554291230,2.42916,3727.5,3727.4,3.12929364]
[1753554293035,2.42916,3727.5,3727.4,2.59291364]
[1753554293334,2.42916,3727.5,3727.4,3.12929364]
[1753554294931,2.2654,3727.5,3727.4,3.12929364]
[1753554295237,1.8928,3727.5,3727.4,6.33709364]
[1753554295835,2.42916,3727.5,3727.4,3.12929364]
[1753554296029,1.0974,3727.9,3727.8,1.44952]
[1753554296235,1.0974,3727.9,3727.8,3.12923364]
[1753554296736,2.0928,3727.9,3727.8,6.33703364]
[1753554297134,0.2,3727.9,3727.8,6.33703364]
[1753554297334,2.0566,3727.9,3727.8,6.33703364]
[1753554297534,2.5929,3727.9,3727.8,6.33703364]
[1753554297733,2.5929,3727.9,3727.8,3.12923364]
[1753554298138,2.0566,3727.9,3727.8,6.33703364]
[1753554298737,0.2,3727.9,3727.8,6.33703364]
[1753554301836,1.8094,3727.9,3727.8,6.33703364]
[1753554302437,2.0566,3727.9,3727.8,6.33703364]
[1753554302836,2.0566,3727.9,3727.8,5.80071364]
[1753554303037,2.0566,3727.9,3727.8,6.33703364]
[1753554303639,2.0566,3727.9,3727.8,5.80071364]
[1753554304237,2.0566,3727.9,3727.8,6.33703364]
[1753554304741,2.0566,3727.9,3727.8,6.00142]
[1753554306440,0.2,3727.9,3727.8,6.00142]
[1753554313646,1.503,3728.6,3728.5,0.5562]
[1753554313840,1.503,3728.6,3728.5,2.62492]
[1753554314247,1.2558,3728.6,3728.5,2.62492]
[1753554314545,0.6008,3727.9,3727.8,4.345]
[1753554314848,2.2106,3727.9,3727.8,5.17022]
[1753554315051,2.2106,3727.9,3727.8,5.00902]
[1753554315351,2.3929,3727.9,3727.8,4.9994]
[1753554315539,2.7469,3727.9,3727.8,4.9994]
[1753554317653,2.2106,3727.9,3727.8,4.9994]
[1753554317850,2.2106,3727.9,3727.8,5.53572]
[1753554318052,2.7469,3727.9,3727.8,4.9994]
[1753554318847,2.2106,3727.9,3727.8,5.53572]
[1753554320553,1.8566,3727.9,3727.8,5.83282]
[1753554321457,2.3929,3727.9,3727.8,5.2965]
[1753554322349,2.3929,3727.9,3727.8,5.83282]
[1753554322653,2.3929,3727.9,3727.8,5.2965]
[1753554324247,1.8566,3727.9,3727.8,5.2965]
[1753554324848,1.8566,3727.9,3727.8,5.83282]
[1753554327549,1.8566,3727.9,3727.8,5.2965]
[1753554327754,1.8566,3727.9,3727.8,5.83282]
[1753554327955,2.7398,3727.9,3727.8,3.2078]
[1753554328156,2.1716,3727.4,3727.3,3.20524573]
[1753554328356,2.1716,3727.4,3727.3,1.29659]
[1753554328559,2.1716,3727.4,3727.3,2.30619]
[1753554329260,10.57676923,3727.3,3727.2,0.5999]
[1753554329659,10.57676923,3727.3,3727.2,1.1363]
[1753554329859,11.88316923,3727.3,3727.2,1.1363]
[1753554330263,9.44046923,3727.2,3727.1,17.2184]
[1753554330563,10.74686923,3727.2,3727.1,17.75482]
[1753554331154,2.1879,3727.2,3727.1,14.89352]
[1753554331361,2.1879,3727.2,3727.1,12.75015077]
[1753554332468,2.1879,3727.2,3727.1,3.99882]
[1753554332766,2.1879,3727.2,3727.1,17.75182]
[1753554333663,2.1879,3727.2,3727.1,3.99882]
[1753554333968,2.7243,3727.2,3727.1,13.747]
[1753554334865,2.11507263,3729.2,3726.9,23.18]
[1753554334866,0.4669,3727.3,3726.9,23.18]
[1753554335069,3.2078,3727.5,3727.4,0.79098]
[1753554335070,4.302,3727.5,3727.4,0.79098]
[1753554335262,4.302,3727.5,3727.4,1.13748]
[1753554335462,5.1415,3727.5,3727.4,1.13748]
[1753554336064,5.3957,3727.5,3727.4,0.6011]
[1753554336473,5.3957,3727.5,3727.0,16.9528]
[1753554336474,0.8815,3727.1,3727.0,3.4624]
[1753554336664,0.8815,3727.1,3727.0,0.53643]
[1753554336869,4.0893,3727.5,3727.4,0.79098]
[1753554337066,4.0893,3727.5,3727.4,1.13748]
[1753554337373,5.3957,3727.5,3727.4,0.6011]
[1753554337573,5.3957,3727.5,3727.4,0.2546]
[1753554337764,5.93206,3727.5,3727.4,0.2546]
[1753554337964,5.93206,3727.5,3727.3,0.53638]
[1753554337965,0.53639,3727.3,3727.2,13.9936]
[1753554338266,2.1879,3727.3,3727.2,14.53]
[1753554339570,1.1594,3727.3,3727.2,14.8765]
[1753554339871,4.0473,3727.5,3727.4,1.13748]
[1753554340478,4.5142,3727.5,3727.4,1.13748]
[1753554341469,5.3957,3727.5,3727.4,1.13748]
[1753554341975,0.8395,3727.5,3727.4,4.34528]
[1753554343372,2.1879,3727.5,3727.4,4.34528]
[1753554345776,1.4668,3727.5,3727.4,4.34528]
[1753554346575,2.1879,3727.5,3727.4,4.34528]
[1753554351680,2.1879,3727.5,3727.4,0.79098]
[1753554351878,2.1879,3727.5,3727.2,13.739]
[1753554352074,0.8815,3727.3,3727.2,14.53]
[1753554352279,2.1879,3727.3,3727.2,0.791]
[1753554358387,2.1879,3727.3,3727.2,0.8353]
[1753554358981,2.1879,3727.3,3727.2,0.791]
[1753554359181,0.9502,3726.9,3726.8,2.70415573]
[1753554359382,2.39,3726.9,3726.8,3.77661573]
[1753554359576,2.39,3726.9,3726.8,1.36236]
[1753554360381,1.0074,3726.9,3726.8,1.36236]
[1753554360582,1.0074,3726.9,3726.8,15.04236]
[1753554360780,1.3826,3727.2,3727.1,1.36232]
[1753554360980,1.3826,3727.2,3727.1,4.57012]
[1753554361382,2.39,3727.2,3727.1,4.57012]
[1753554361975,2.39,3727.2,3727.1,1.36232]
[1753554362175,2.39,3727.2,3727.1,4.57012]
[1753554363689,1.0074,3727.2,3727.1,4.57012]
[1753554367286,1.4398,3727.2,3727.1,4.57012]
[1753554367492,2.39,3727.2,3727.1,4.57012]
[1753554368487,2.39,3727.2,3727.1,4.14922]
[1753554368786,2.39,3727.2,3727.1,4.10492]
[1753554369189,1.48661,3727.2,3726.9,0.53645]
[1753554369390,0.9502,3727.0,3726.9,0.53645]
[1753554369583,2.39,3727.0,3726.8,2.41221863]
[1753554369779,0.8478,3726.8,3726.7,1.33801863]
[1753554370083,2.39,3726.8,3726.7,2.49028]
[1753554370289,2.39,3726.8,3726.7,6.11898]
[1753554372884,2.92646,3726.8,3726.7,3.2078]
[1753554373089,0.2949,3726.4,3726.3,16.8588]
[1753554373282,2.39,3726.4,3726.3,19.05503]
[1753554373790,2.39,3726.4,3726.3,19.05403]
[1753554375193,1.4398,3727.4,3726.3,21.8538]
[1753554375395,2.59674853,3729.2,3726.3,21.8538]
[1753554375396,0.9502,3727.8,3727.7,1.50132]
[1753554375790,0.9502,3727.8,3727.7,2.91102]
[1753554376596,0.9502,3727.8,3727.7,2.91103]
[1753554377489,2.39,3727.8,3727.7,2.91103]
[1753554381092,1.3826,3727.8,3727.7,2.91103]
[1753554381293,1.9746,3728.0,3727.9,1.5013]
[1753554381589,2.39,3728.0,3727.9,2.911]
[1753554382390,1.9746,3728.0,3727.9,2.911]
[1753554382795,2.39,3728.0,3727.9,2.911]
[1753554383889,5.1654,3728.3,3728.2,2.91096]
[1753554384391,5.5978,3728.3,3728.2,2.91096]
[1753554384792,2.39,3728.3,3728.2,2.91096]
[1753554387689,1.0707,3728.5,3728.4,0.3829]
[1753554387890,1.3562,3728.5,3728.4,2.96633]
[1753554388296,1.5638,3728.7,3728.6,2.9663]
[1753554388506,2.0355,3728.7,3728.6,2.9663]
[1753554389297,1.058,3728.7,3728.6,2.9663]
[1753554389497,3.2078,3729.1,3728.8,0.9537]
[1753554389696,4.9425,3729.1,3729.0,0.663]
[1753554389898,6.22403,3729.1,3729.0,1.9715]
[1753554390099,5.6879,3729.1,3729.0,2.4301]
[1753554390403,3.01623,3729.1,3729.0,0.64848434]
[1753554390598,2.4801,3729.1,3729.0,1.60218434]
[1753554391693,3.01623,3729.1,3729.0,1.60218434]
[1753554391895,2.4801,3729.1,3729.0,1.60218434]
[1753554392295,2.4801,3729.1,3729.0,2.13833434]
[1753554392499,1.5153,3729.1,3729.0,2.58463434]
[1753554392697,2.4801,3729.1,3729.0,2.58463434]
[1753554393204,2.4801,3729.1,3729.0,2.13833434]
[1753554393502,0.7301,3729.1,3729.0,2.58463434]
[1753554393706,0.4446,3729.1,3729.0,2.58463434]
[1753554393999,1.0616,3729.3,3729.2,0.53612]
[1753554394197,0.018,3729.3,3729.2,2.95452]
[1753554396500,0.018,3729.3,3729.2,7.95452]
[1753554398414,0.4626,3729.3,3729.2,16.54752]
[1753554399098,0.4626,3729.3,3729.2,19.75532]
[1753554399297,0.018,3729.3,3729.2,19.75532]
[1753554400003,1.08383433,3730.0,3729.9,2.95442]
[1753554400305,1.08383433,3730.0,3729.9,6.16222]
[1753554400500,0.9648,3731.1,3731.0,0.53585]
[1753554400699,0.9648,3731.1,3730.6,3.2078]
[1753554401000,0.9648,3731.1,3731.0,0.53586]
[1753554401202,2.4801,3731.1,3731.0,0.53586]
[1753554402002,2.4801,3731.1,3731.0,1.28516]
[1753554402202,2.4801,3731.1,3731.0,1.84496]
[1753554402512,2.4801,3731.1,3731.0,0.53586]
[1753554402904,2.4801,3731.1,3731.0,2.50796]
[1753554403508,2.4801,3731.1,3731.0,6.16206]
[1753554404710,3.2078,3731.8,3731.3,0.4463]
[1753554404905,0.018,3732.3,3732.2,1.0184]
[1753554404906,2.0535,3732.3,3732.2,1.0184]
[1753554405102,0.9648,3731.9,3731.8,0.5598]
[1753554405409,2.4801,3731.9,3731.8,2.50784]
[1753554405804,2.0084,3731.9,3731.8,2.95414]
[1753554406207,2.4801,3731.9,3731.8,2.50784]
[1753554406808,2.4801,3731.9,3731.8,0.53574]
[1753554407213,2.4801,3731.9,3731.7,3.74355]
[1753554407411,2.4801,3731.8,3731.7,3.2078]
[1753554407615,0.9648,3731.8,3731.6,13.56374409]
[1753554407913,2.4801,3731.7,3731.6,13.56374409]
[1753554408310,2.4801,3731.6,3731.5,3.74358]
[1753554409013,2.4801,3731.6,3731.5,5.71568]
[1753554409310,2.4801,3731.6,3731.5,6.16198]
[1753554409509,0.7301,3731.6,3731.5,6.16198]
[1753554409708,1.8811,3731.9,3731.8,1.48944]
[1753554409912,2.4801,3731.9,3731.8,5.71564]
[1753554410105,2.4801,3731.9,3731.8,6.16194]
[1753554411417,1.281,3732.3,3732.2,1.75849]
[1753554411710,1.281,3732.3,3732.2,4.96629]
[1753554411911,1.7256,3732.3,3732.2,4.96629]
[1753554412106,0.4626,3732.3,3732.2,5.41259]
[1753554412314,1.7256,3732.3,3732.2,4.96629]
[1753554412912,1.7256,3732.3,3732.2,4.40649]
[1753554413108,1.7256,3732.3,3732.2,17.96149]
[1753554413309,2.4981,3732.3,3732.2,19.27059]
[1753554414112,2.4981,3732.3,3732.2,5.71559]
[1753554416121,2.0355,3732.8,3732.7,1.48931]
[1753554416416,1.5638,3732.8,3732.7,6.17351]
[1753554416607,1.263,3732.8,3732.7,6.17351]
[1753554416809,2.0355,3733.1,3733.0,1.48927]
[1753554417011,2.0355,3733.1,3733.0,16.51267]
[1753554417206,2.0355,3733.1,3733.0,15.49487]
[1753554417721,2.0355,3733.1,3733.0,15.93807]
[1753554417917,2.0355,3733.1,3733.0,16.52117]
[1753554418217,1.0336,3733.5,3733.4,1.0604]
[1753554418420,1.9484,3733.5,3733.4,3.08131]
[1753554418916,2.5597,3733.5,3733.4,3.08131]
[1753554420117,3.2078,3733.8,3733.4,2.5458]
[1753554420318,3.2078,3733.8,3733.7,6.28907]
[1753554420319,2.5597,3733.8,3733.7,6.28907]
[1753554421614,0.9148,3734.1,3733.8,3.08126]
[1753554422923,1e-05,3733.9,3733.8,3.08126]
[1753554424517,2.55971,3733.9,3733.8,3.08126]
[1753554425821,2.55971,3733.9,3733.8,16.60826]
[1753554426119,2.55971,3733.9,3733.8,15.12086]
[1753554426812,2.55971,3733.9,3733.7,3.2078]
[1753554427011,2.55971,3733.9,3733.2,3.2078]
[1753554427012,1.0336,3733.8,3733.2,3.2078]
[1753554427218,1.0336,3732.9,3732.8,4.3801]
[1753554427522,2.5597,3732.9,3732.8,4.3801]
[1753554428318,2.5597,3732.9,3732.8,3.7434]
[1753554428620,2.5597,3732.9,3732.8,17.2624]
[1753554429015,2.5597,3732.9,3732.8,13.519]
[1753554429418,1.9396,3732.8,3732.7,0.53561]
[1753554429618,2.5597,3732.8,3732.7,0.53561]
[1753554429926,2.5597,3732.7,3732.6,13.517]
[1753554430220,1.3439,3732.6,3732.5,16.59744]
[1753554430524,2.5597,3732.6,3732.5,19.22214]
[1753554431227,2.5597,3732.6,3732.5,18.31984]
[1753554431517,2.5597,3732.6,3732.5,17.89614]
[1753554432023,2.5597,3732.6,3732.5,4.38014]
[1753554433726,2.5597,3732.6,3732.5,1.17234]
[1753554434121,2.5597,3732.6,3732.5,0.85014]
[1753554436817,2.5597,3732.6,3732.5,0.53564]
[1753554437022,3.74336,3733.1,3732.1,3.2078]
[1753554437023,1.0743,3732.2,3732.1,3.2078]
[1753554437222,2.5597,3732.2,3732.1,3.7435]
[1753554438325,1.0336,3731.6,3731.5,4.3036]
[1753554438521,2.5597,3731.6,3731.5,5.7536]
[1753554438722,2.5597,3731.6,3731.0,4.6932]
[1753554438918,0.7326,3731.4,3731.3,0.53581]
[1753554439221,2.5597,3731.4,3731.3,0.53581]
[1753554439526,2.5597,3731.4,3731.3,0.85031]
[1753554439723,2.5597,3731.4,3731.3,1.63161]
[1753554439925,2.5597,3731.4,3731.3,2.07481]
[1753554440229,2.5597,3731.4,3731.3,2.49851]
[1753554440431,0.6113,3732.2,3732.1,3.0815]
[1753554440727,2.5597,3732.5,3732.4,3.08146]
[1753554441129,2.5597,3732.5,3732.4,2.49836]
[1753554443229,0.5597,3732.5,3732.4,2.49836]
[1753554443424,1.5933,3732.5,3732.4,3.08146]
[1753554445333,1.8341,3732.5,3732.4,3.08146]
[1753554452725,1.8341,3732.5,3732.4,1.29336]
[1753554452930,2.0618,3732.5,3732.4,0.97886]
[1753554453433,2.0618,3732.5,3732.4,1.30076]
[1753554453633,2.0618,3732.5,3732.4,1.77736]
[1753554454241,3.2078,3733.3,3732.6,2.5969]
[1753554454427,1.2652,3733.0,3732.9,3.13249]
[1753554454632,1.562,3733.0,3732.9,3.13249]
[1753554454833,1.8616,3733.0,3732.9,3.13249]
[1753554456535,1.562,3733.0,3732.9,3.13249]
[1753554456736,4.0785,3733.3,3733.2,1.55734]
[1753554456934,4.7698,3733.3,3733.2,3.13244]
[1753554457135,5.0694,3733.3,3733.2,3.13244]
[1753554466641,4.473,3733.3,3733.2,3.13244]
[1753554467841,0.6583,3733.3,3733.2,3.13244]
[1753554468148,0.3945,3733.3,3733.2,3.13244]
[1753554468446,1.0014,3733.3,3733.2,3.13244]
[1753554469352,1.8616,3733.6,3733.5,1.5573]
[1753554469552,1.8616,3733.6,3733.5,2.5969]
[1753554469749,2.62479,3733.6,3733.5,0.4665]
[1753554469943,3.2078,3733.7,3733.1,1.01214]
[1753554469944,0.919,3733.2,3733.1,0.4665]
[1753554470150,2.62484,3733.2,3733.1,0.4665]
[1753554470350,2.62484,3733.2,3733.1,0.7884]
[1753554470550,2.62484,3733.2,3733.1,1.5619]
[1753554470954,2.62484,3733.2,3733.1,2.1939]
[1753554471660,2.62484,3733.2,3732.5,3.2078]
[1753554471661,1.398,3733.2,3732.9,0.53558]
[1753554471860,2.0893,3733.0,3732.9,1.62088]
[1753554472053,2.0893,3733.0,3732.9,2.09748]
[1753554472657,2.0893,3733.0,3732.9,1.62088]
[1753554473361,2.0893,3733.0,3732.9,2.09748]
[1753554474659,2.62487,3733.0,3732.9,0.4665]
[1753554474857,2.0893,3732.4,3732.3,0.4665]
[1753554475050,2.62496,3732.4,3732.3,0.4665]
[1753554477057,2.625,3732.1,3732.0,1.265]
[1753554477260,2.625,3732.1,3732.0,0.7884]
[1753554477461,2.625,3732.1,3732.0,0.4665]
[1753554479263,3.2078,3732.2,3732.0,2.5555]
[1753554479459,0.247,3732.7,3732.6,0.53563]
[1753554479666,1.2383,3732.7,3732.6,3.08053]
[1753554480562,1.5307,3732.7,3732.6,3.08053]
[1753554481666,0.404,3732.7,3732.6,3.08053]
[1753554481868,1.8404,3733.0,3732.9,1.55259]
[1753554482061,2.57508199,3733.0,3732.9,3.08049]
[1753554482468,2.57508199,3733.0,3732.9,2.5449]
[1753554482669,1.8404,3733.0,3732.9,2.5449]
[1753554482871,2.37597,3733.0,3732.9,2.5449]
[1753554484758,2.58687,3733.0,3732.9,1.0863]
[1753554486169,2.37597,3733.0,3732.9,1.9478]
[1753554486371,2.37597,3733.0,3732.9,2.5449]
[1753554487470,2.58687,3733.0,3732.9,1.0863]
[1753554489568,2.37597,3733.0,3732.9,2.5449]
[1753554489871,2.58687,3733.0,3732.9,0.7662]
[1753554490065,1.54171,3732.7,3732.6,0.9308]
[1753554490267,2.37601,3732.7,3732.6,1.2509]
[1753554490466,2.37601,3732.7,3732.6,2.5449]
[1753554492476,2.58691,3732.7,3732.6,0.4641]
[1753554492771,1.12291,3732.7,3732.6,1.4811]
[1753554492969,0.8343,3732.9,3732.8,1.5526]
[1753554493165,1.12289,3732.9,3732.8,3.0805]
[1753554493364,0.5873,3732.9,3732.8,3.0805]
[1753554495166,0.53558,3733.0,3732.8,3.0805]
[1753554495374,1.52686,3733.1,3733.0,2.5449]
[1753554496172,0.93956,3733.1,3733.0,2.5449]
[1753554496473,0.404,3733.1,3733.0,3.08047]
[1753554496676,0.93956,3733.1,3733.0,2.5449]
[1753554496973,3.32171782,3733.1,3733.0,1.9478]
[1753554497876,3.11081782,3733.1,3733.0,2.5449]
[1753554498270,3.11103765,3733.1,3733.0,2.5449]
[1753554498573,1.9996,3732.8,3732.7,0.4641]
[1753554498778,2.5869,3732.8,3732.7,0.4641]
[1753554499473,2.5869,3732.8,3732.7,0.7842]
[1753554499876,2.5869,3732.8,3732.7,1.553]
[1753554500676,2.5869,3732.8,3732.7,0.4641]
[1753554500876,1.54174,3732.5,3732.4,0.9308]
[1753554501076,2.58694,3732.5,3732.4,0.9308]
[1753554501277,2.58694,3732.5,3732.4,1.2509]
[1753554501481,2.58694,3732.5,3732.4,0.4641]
[1753554501868,0.8343,3732.4,3731.8,0.4667]
[1753554502072,1.54182,3732.0,3731.9,1.0863]
[1753554502379,2.37612,3732.0,3731.9,1.553]
[1753554502679,2.58702,3732.0,3731.9,0.4641]
[1753554502976,2.37616,3731.7,3731.6,1.6457]
[1753554503175,0.9913,3731.7,3731.6,5.7527]
[1753554503379,0.53572,3732.0,3731.9,0.6969]
[1753554503571,0.53572,3732.0,3731.9,2.5449]
[1753554503878,0.93972,3732.0,3731.9,2.5449]
[1753554504079,2.06642,3732.0,3731.9,2.5449]
[1753554504379,2.37612,3732.0,3731.9,2.5449]
[1753554506276,2.58702,3732.0,3731.9,0.4641]
[1753554506568,1.54186,3731.7,3731.6,1.3813]
[1753554506771,2.58706,3731.7,3731.6,0.4641]
[1753554508874,2.37616,3731.7,3731.6,1.0483]
[1753554509071,2.37616,3731.7,3731.6,1.4507]
[1753554509271,2.37616,3731.7,3731.6,2.4976]
[1753554509478,2.57046,3731.7,3731.6,1.4507]
[1753554509681,2.57046,3731.7,3731.6,1.0483]
[1753554509878,2.02082769,3732.7,3732.6,1.1371]
[1753554510083,1.71709057,3732.7,3732.6,2.4779]
[1753554510381,0.73579057,3732.7,3732.6,3.01353]
[1753554517986,1.51689,3732.9,3732.8,2.4779]
[1753554518486,1.82249,3732.9,3732.8,2.4779]
[1753554519182,1.24673,3732.6,3732.5,1.4827]
[1753554519380,2.01683,3732.6,3732.5,1.4827]
[1753554519580,1.82253,3732.6,3732.5,2.4779]
[1753554520079,2.01683,3732.6,3732.5,0.4444]
[1753554521688,2.01683,3732.6,3732.5,1.0286]
[1753554521885,1.82253,3732.6,3732.5,2.4779]
[1753554522788,1.82253,3732.6,3732.5,1.8851]
[1753554525385,2.55847641,3732.6,3732.5,1.8851]
[1753554526286,2.55847641,3732.6,3732.5,2.4779]
[1753554527381,0.3056,3732.2,3732.1,1.4827]
[1753554527586,1.82259,3732.2,3732.1,2.4779]
[1753554527888,2.55877874,3732.2,3732.1,2.4779]
[1753554528485,1.27187874,3732.2,3732.1,2.4779]
[1753554531394,1.67737874,3732.2,3732.1,2.4779]
[1753554531595,2.25317874,3732.2,3732.1,2.4779]
[1753554531995,2.55877874,3732.2,3732.1,2.4779]
[1753554534997,2.25317874,3732.2,3732.1,2.4779]
[1753554535397,2.55877874,3732.2,3732.1,2.4779]
[1753554537891,2.55877874,3732.2,3731.7,1.0222]
[1753554537892,1.77394,3731.8,3731.7,1.0222]
[1753554538096,4.98174,3731.8,3731.7,2.0281]
[1753554538499,4.98174,3731.8,3731.7,2.4608]
[1753554539694,5.16544,3731.8,3731.7,1.4549]
[1753554539900,5.16544,3731.8,3731.7,0.4327]
[1753554540301,4.98174,3731.8,3731.7,2.4608]
[1753554541194,5.71751373,3731.8,3731.7,2.4608]
[1753554542896,4.98174,3731.8,3731.7,2.4608]
[1753554544604,3.74354,3731.8,3731.7,2.4608]
[1753554544903,0.53574,3731.9,3731.8,2.4608]
[1753554546504,0.53574,3731.9,3731.8,2.99654]
[1753554547003,0.53572,3732.0,3731.8,1.51234]